fUSD/lending_fUSD_20241223
["ID","MTS","AMOUNT","RATE_DAILY","PERIOD"]
[346384499,1734931840141,-500.0,0.00019178,2]
[346384500,1734931840151,-503.69308617,0.00019178,2]
[346384501,1734931840160,-500.0,0.00019178,2]
[346384502,1734931840170,-718.91,0.00019178,2]
[346384503,1734931840179,-884.86,0.00019178,2]
[346384504,1734931840188,-500.0,0.00019178,2]
[346384505,1734931840196,-500.0,0.00019178,2]
[346384506,1734931840206,-508.72750555,0.00019178,2]
[346384507,1734931840215,-503.04146051,0.00019178,2]
[346384508,1734931840224,-502.62572485,0.00019178,2]
[346384509,1734931840232,-502.27239214,0.00019178,2]
[346384510,1734931840241,-500.0,0.00019178,2]
[346384511,1734931840254,-504.67001105,0.00019178,2]
[346384512,1734931840263,-500.0,0.00019178,2]
[346384513,1734931840272,-500.0,0.00019178,2]
[346384514,1734931840281,-500.0,0.00019178,2]
[346384515,1734931840291,-500.0,0.00019178,2]
[346384516,1734931840299,-500.0,0.00019178,2]
[346384517,1734931840309,-500.0,0.00019178,2]
[346384518,1734931840318,-500.0,0.00019178,2]
[346384519,1734931840327,-163.2295204,0.00019178,2]
[346384520,1734931840336,-500.0,0.00019178,2]
[346384521,1734931840345,-639.82,0.00019178,2]
[346384522,1734931840354,-507.40362521,0.00019178,2]
[346384523,1734931840363,-846.36,0.00019178,2]
[346384524,1734931840372,-500.0,0.00019178,2]
[346384526,1734931840381,-500.0,0.00019178,2]
[346384527,1734931840390,-508.50933137,0.00019178,2]
[346384528,1734931840399,-500.0,0.00019178,2]
[346384529,1734931840408,-509.31654314,0.00019178,2]
[346384530,1734931840417,-500.0,0.00019178,2]
[346384531,1734931840426,-500.0,0.00019178,2]
[346384532,1734931840435,-267.88537435,0.00019178,2]
[346384533,1734931840444,-500.0,0.00019178,2]
[346384534,1734931840453,-948.71,0.00019178,2]
[346384535,1734931840463,-500.0,0.00019178,2]
[346384536,1734931840471,-509.34632273,0.00019178,2]
[346384537,1734931840481,-500.0,0.00019178,2]
[346384538,1734931840489,-718.2,0.00019178,2]
[346384539,1734931840499,-500.0,0.00019178,2]
[346384540,1734931840508,-500.0,0.00019178,2]
[346384541,1734931840517,-500.0,0.00019178,2]
[346384542,1734931840527,-500.0,0.00019178,2]
[346384543,1734931840536,-500.0,0.00019178,2]
[346384544,1734931840544,-500.0,0.00019178,2]
[346384545,1734931840554,-500.0,0.00019178,2]
[346384546,1734931840563,-500.0,0.00019178,2]
[346384547,1734931840572,-500.0,0.00019178,2]
[346384548,1734931840580,-500.0,0.00019178,2]
[346384549,1734931840589,-500.0,0.00019178,2]
[346384550,1734931840598,-500.0,0.00019178,2]
[346384551,1734931840607,-506.62366418,0.00019178,2]
[346384552,1734931840786,-500.0,0.00019178,2]
[346384553,1734931840796,-500.0,0.00019178,2]
[346384554,1734931840805,-500.0,0.00019178,2]
[346384555,1734931840814,-507.16,0.00019178,2]
[346384556,1734931840823,-1017.04,0.00019178,2]
[346384557,1734931840831,-867.51,0.00019178,2]
[346384558,1734931840840,-500.0,0.00019178,2]
[346384559,1734931840849,-528.62,0.00019178,2]
[346384560,1734931840858,-500.0,0.00019178,2]
[346384561,1734931840867,-500.0,0.00019178,2]
[346384562,1734931840876,-500.0,0.00019178,2]
[346384563,1734931840885,-500.0,0.00019178,2]
[346384564,1734931840894,-500.0,0.00019178,2]
[346384565,1734931840903,-500.0,0.00019178,2]
[346384566,1734931840912,-500.0,0.00019178,2]
[346384567,1734931840920,-500.0,0.00019178,2]
[346384568,1734931840929,-500.0,0.00019178,2]
[346384569,1734931840938,-630.59,0.00019178,2]
[346384570,1734931840947,-500.0,0.00019178,2]
[346384571,1734931840956,-549.74,0.00019178,2]
[346384572,1734931840965,-511.1043352,0.00019178,2]
[346384573,1734931840974,-500.0,0.00019178,2]
[346384574,1734931840983,-780.48,0.00019178,2]
[346384575,1734931840992,-500.0,0.00019178,2]
[346384576,1734931841001,-500.0,0.00019178,2]
[346384577,1734931841010,-826.95,0.00019178,2]
[346384578,1734931841019,-500.0,0.00019178,2]
[346384579,1734931841028,-500.0,0.00019178,2]
[346384580,1734931841037,-500.0,0.00019178,2]
[346384581,1734931841047,-500.0,0.00019178,2]
[346384582,1734931841056,-500.0,0.00019178,2]
[346384583,1734931841065,-500.0,0.00019178,2]
[346384584,1734931841074,-503.39452979,0.00019178,2]
[346384585,1734931841083,-505.71685197,0.00019178,2]
[346384586,1734931841092,-500.0,0.00019178,2]
[346384587,1734931841101,-520.22049368,0.00019178,2]
[346384588,1734931841111,-500.0,0.00019178,2]
[346384589,1734931841120,-500.0,0.00019178,2]
[346384590,1734931841129,-500.0,0.00019178,2]
[346384591,1734931841137,-500.0,0.00019178,2]
[346384592,1734931841146,-500.0,0.00019178,2]
[346384593,1734931841155,-500.0,0.00019178,2]
[346384594,1734931841164,-500.0,0.00019178,2]
[346384595,1734931841173,-500.0,0.00019178,2]
[346384596,1734931841182,-500.0,0.00019178,2]
[346384597,1734931841191,-500.0,0.00019178,2]
[346384598,1734931841200,-508.34226784,0.00019178,2]
[346384599,1734931841209,-500.0,0.00019178,2]
[346384600,1734931841218,-500.0,0.00019178,2]
[346384601,1734931841227,-500.0,0.00019178,2]
[346384602,1734931841236,-500.0,0.00019178,2]
[346384603,1734931841244,-500.0,0.00019178,2]
[346384604,1734931841254,-500.0,0.00019178,2]
[346384605,1734931841264,-500.0,0.00019178,2]
[346384606,1734931841272,-501.72879386,0.00019178,2]
[346384607,1734931841282,-506.31014789,0.00019178,2]
[346384608,1734931841291,-513.43650874,0.00019178,2]
[346384609,1734931841300,-500.46311983,0.00019178,2]
[346384610,1734931841309,-500.0,0.00019178,2]
[346384611,1734931841317,-501.91291437,0.00019178,2]
[346384612,1734931841326,-1687.56,0.00019178,2]
[346384613,1734931841335,-500.0,0.00019178,2]
[346384614,1734931841344,-500.0,0.00019178,2]
[346384615,1734931841352,-601.1644801,0.00019178,2]
[346384616,1734931841361,-500.0,0.00019178,2]
[346384617,1734931841370,-500.0,0.00019178,2]
[346384618,1734931841379,-500.0,0.00019178,2]
[346384619,1734931841388,-248.37784502,0.00019178,2]
[346384620,1734931841397,-500.0,0.00019178,2]
[346384621,1734931841406,-500.0,0.00019178,2]
[346384622,1734931841414,-500.0,0.00019178,2]
[346384623,1734931841423,-684.58,0.00019178,2]
[346384624,1734931841433,-500.0,0.00019178,2]
[346384625,1734931841442,-500.0,0.00019178,2]
[346384626,1734931841451,-500.0,0.00019178,2]
[346384627,1734931841460,-500.0,0.00019178,2]
[346384628,1734931841469,-500.0,0.00019178,2]
[346384629,1734931841478,-500.0,0.00019178,2]
[346384630,1734931841487,-500.0,0.00019178,2]
[346384631,1734931841496,-500.0,0.00019178,2]
[346384632,1734931841506,-500.0,0.00019178,2]
[346384633,1734931841515,-753.57,0.00019178,2]
[346384634,1734931841524,-508.8051519,0.00019178,2]
[346384635,1734931841533,-511.7174667,0.00019178,2]
[346384636,1734931841542,-1091.4,0.00019178,2]
[346384637,1734931841551,-500.0,0.00019178,2]
[346384638,1734931841560,-500.0,0.00019178,2]
[346384639,1734931841569,-500.0,0.00019178,2]
[346384640,1734931841578,-500.0,0.00019178,2]
[346384641,1734931841587,-1152.55,0.00019178,2]
[346384642,1734931841596,-500.0,0.00019178,2]
[346384643,1734931841605,-500.0,0.00019178,2]
[346384644,1734931841614,-500.0,0.00019178,2]
[346384645,1734931841623,-500.0,0.00019178,2]
[346384646,1734931841631,-500.0,0.00019178,2]
[346384647,1734931841640,-500.0,0.00019178,2]
[346384648,1734931841652,-500.0,0.00019178,2]
[346384649,1734931841661,-500.0,0.00019178,2]
[346384650,1734931841671,-2000.0,0.00019178,15]
[346384651,1734931841680,-500.0,0.00019178,2]
[346384652,1734931841689,-500.0,0.00019178,2]
[346384653,1734931841699,-510.60338968,0.00019178,2]
[346384654,1734931841707,-500.0,0.00019178,2]
[346384655,1734931841716,-508.32591885,0.00019178,2]
[346384656,1734931841727,-1151.76,0.00019178,2]
[346384657,1734931841736,-802.36,0.00019178,2]
[346384658,1734931841745,-500.0,0.00019178,2]
[346384659,1734931841756,-963.0,0.00019178,2]
[346384660,1734931841765,-1039.93,0.00019178,2]
[346384661,1734931841774,-500.0,0.00019178,2]
[346384662,1734931841783,-500.0,0.00019178,2]
[346384663,1734931841792,-504.53187164,0.00019178,2]
[346384664,1734931841801,-500.0,0.00019178,2]
[346384665,1734931841810,-375.53408145,0.00019178,2]
[346384666,1734931841819,-773.86,0.00019178,2]
[346384667,1734931841827,-500.0,0.00019178,2]
[346384668,1734931841837,-511.8565044,0.00019178,2]
[346384669,1734931841846,-347.70908156,0.00019178,2]
[346384670,1734931841855,-500.0,0.00019178,2]
[346384671,1734931841864,-500.0,0.00019178,2]
[346384672,1734931841873,-981.87,0.00019178,2]
[346384673,1734931841882,-500.0,0.00019178,2]
[346384674,1734931841891,-509.22889402,0.00019178,2]
[346384675,1734931841900,-639.35,0.00019178,2]
[346384676,1734931841909,-500.0,0.00019178,2]
[346384677,1734931841918,-504.03428673,0.00019178,2]
[346384678,1734931841927,-500.0,0.00019178,2]
[346384679,1734931841935,-500.0,0.00019178,2]
[346384680,1734931841945,-500.0,0.00019178,2]
[346384681,1734931841953,-502.50607202,0.00019178,2]
[346384682,1734931841962,-316.79801518,0.00019178,2]
[346384683,1734931841971,-410.72343902,0.00019178,2]
[346384684,1734931841980,-507.8743756,0.00019178,2]
[346384685,1734931841989,-514.88784897,0.00019178,2]
[346384686,1734931841998,-500.0,0.00019178,2]
[346384687,1734931842012,-500.0,0.00019178,2]
[346384688,1734931842021,-500.0,0.00019178,2]
[346384689,1734931842030,-1110.45,0.00019178,2]
[346384690,1734931842040,-500.0,0.00019178,2]
[346384691,1734931842049,-500.0,0.00019178,2]
[346384692,1734931842058,-500.0,0.00019178,2]
[346384693,1734931842067,-500.0,0.00019178,2]
[346384694,1734931842077,-500.0,0.00019178,2]
[346384695,1734931842086,-500.0,0.00019178,2]
[346384696,1734931842095,-500.0,0.00019178,2]
[346384697,1734931842104,-500.0,0.00019178,2]
[346384698,1734931842113,-561.56,0.00019178,2]
[346384699,1734931842123,-500.0,0.00019178,2]
[346384700,1734931842133,-500.0,0.00019178,2]
[346384701,1734931842142,-500.0,0.00019178,2]
[346384702,1734931842151,-500.0,0.00019178,2]
[346384703,1734931842160,-500.0,0.00019178,2]
[346384704,1734931842170,-500.0,0.00019178,2]
[346384705,1734931842179,-500.0,0.00019178,2]
[346384706,1734931842188,-500.0,0.00019178,2]
[346384707,1734931842197,-1191.17,0.00019178,2]
[346384708,1734931842205,-500.0,0.00019178,2]
[346384709,1734931842215,-500.0,0.00019178,2]
[346384710,1734931842224,-500.0,0.00019178,2]
[346384711,1734931842233,-500.0,0.00019178,2]
[346384712,1734931842242,-500.0,0.00019178,2]
[346384713,1734931842252,-500.0,0.00019178,2]
[346384714,1734931842260,-500.0,0.00019178,2]
[346384715,1734931842269,-835.79,0.00019178,2]
[346384716,1734931842278,-500.0,0.00019178,2]
[346384717,1734931842287,-500.0,0.00019178,2]
[346384718,1734931842296,-517.17,0.00019178,2]
[346384719,1734931842306,-500.0,0.00019178,2]
[346384720,1734931842315,-500.0,0.00019178,2]
[346384721,1734931842323,-1080.73,0.00019178,2]
[346384722,1734931842332,-500.0,0.00019178,2]
[346384723,1734931842341,-631.87,0.00019178,2]
[346384724,1734931842349,-500.93526458,0.00019178,2]
[346384725,1734931842358,-500.0,0.00019178,2]
[346384726,1734931842367,-500.0,0.00019178,2]
[346384727,1734931842376,-500.0,0.00019178,2]
[346384728,1734931842385,-503.11740471,0.00019178,2]
[346384729,1734931842394,-552.87705474,0.00019178,2]
[346384730,1734931842403,-858.93,0.00019178,2]
[346384731,1734931842412,-500.0,0.00019178,2]
[346384732,1734931842421,-500.0,0.00019178,2]
[346384733,1734931842430,-500.0,0.00019178,2]
[346384734,1734931842438,-1219.06,0.00019178,2]
[346384735,1734931842447,-982.96,0.00019178,2]
[346384736,1734931842456,-3000.0,0.00019178,2]
[346384737,1734931842465,-500.0,0.00019178,2]
[346384738,1734931842474,-504.63681208,0.00019178,2]
[346384739,1734931842483,-502.83682386,0.00019178,2]
[346384740,1734931842492,-663.64,0.00019178,2]
[346384741,1734931842502,-964.4,0.00019178,2]
[346384742,1734931842511,-500.0,0.00019178,2]
[346384743,1734931842521,-500.0,0.00019178,2]
[346384744,1734931842530,-481.16461738,0.00019178,2]
[346384745,1734931842540,-500.0,0.00019178,2]
[346384746,1734931842549,-500.0,0.00019178,2]
[346384747,1734931842558,-501.2402198,0.00019178,2]
[346384748,1734931842567,-1549.06,0.00019178,2]
[346384749,1734931842577,-500.0,0.00019178,2]
[346384750,1734931842587,-1362.82,0.00019178,2]
[346384751,1734931842596,-501.9670965,0.00019178,2]
[346384752,1734931842606,-793.53,0.00019178,2]
[346384753,1734931842615,-502.71613647,0.00019178,2]
[346384754,1734931842624,-500.0,0.00019178,2]
[346384755,1734931842633,-503.74756305,0.00019178,2]
[346384756,1734931842643,-500.0,0.00019178,2]
[346384758,1734931842655,-873.95,0.00019178,2]
[346384759,1734931842664,-500.0,0.00019178,2]
[346384760,1734931842674,-500.0,0.00019178,2]
[346384761,1734931842683,-1233.1,0.00019178,2]
[346384762,1734931842693,-500.0,0.00019178,2]
[346384763,1734931842703,-525.31738827,0.00019178,2]
[346384764,1734931842711,-500.0,0.00019178,2]
[346384765,1734931842722,-502.42127561,0.00019178,2]
[346384766,1734931842731,-500.0,0.00019178,2]
[346384767,1734931842740,-500.0,0.00019178,2]
[346384768,1734931842750,-1438.0,0.00019178,2]
[346384769,1734931842761,-502.16162493,0.00019178,2]
[346384770,1734931842770,-1148.23,0.00019178,2]
[346384771,1734931842784,-500.0,0.00019178,2]
[346384772,1734931842793,-500.0,0.00019178,2]
[346384773,1734931842802,-505.26043157,0.00019178,2]
[346384774,1734931842811,-507.00657674,0.00019178,2]
[346384775,1734931842820,-1241.74,0.00019178,2]
[346384776,1734931842829,-500.0,0.00019178,2]
[346384777,1734931842838,-500.0,0.00019178,2]
[346384778,1734931842848,-503.02124568,0.00019178,2]
[346384779,1734931842858,-1762.53,0.00019178,2]
[346384780,1734931842867,-1475.63,0.00019178,2]
[346384781,1734931842875,-500.0,0.00019178,2]
[346384782,1734931842884,-814.81,0.00019178,2]
[346384783,1734931842893,-748.52,0.00019178,2]
[346384784,1734931842902,-1059.68,0.00019178,2]
[346384785,1734931842911,-613.89714612,0.00019178,2]
[346384786,1734931842920,-4070.61,0.00019178,2]
[346384787,1734931842929,-500.0,0.00019178,2]
[346384788,1734931842938,-1639.91,0.00019178,2]
[346384789,1734931842947,-500.0,0.00019178,2]
[346384790,1734931842956,-498.43623597,0.00019178,2]
[346384791,1734931842966,-500.0,0.00019178,2]
[346384792,1734931842975,-500.0,0.00019178,2]
[346384793,1734931842984,-500.0,0.00019178,2]
[346384794,1734931842993,-1461.71,0.00019178,2]
[346384795,1734931843002,-871.56,0.00019178,2]
[346384796,1734931843011,-500.0,0.00019178,2]
[346384797,1734931843020,-500.0,0.00019178,2]
[346384798,1734931843029,-2540.93,0.00019178,2]
[346384799,1734931843038,-532.94599224,0.00019178,2]
[346384800,1734931843047,-921.96,0.00019178,2]
[346384801,1734931843056,-500.0,0.00019178,2]
[346384802,1734931843064,-1034.57,0.00019178,2]
[346384803,1734931843073,-500.0,0.00019178,2]
[346384804,1734931843082,-877.08,0.00019178,2]
[346384805,1734931843091,-500.0,0.00019178,2]
[346384807,1734931843100,-2898.89,0.00019178,2]
[346384808,1734931843109,-1856.0,0.00019178,2]
[346384809,1734931843119,-500.0,0.00019178,2]
[346384810,1734931843128,-500.55002691,0.00019178,2]
[346384811,1734931843137,-2011.66,0.00019178,2]
[346384812,1734931843146,-500.0,0.00019178,2]
[346384813,1734931843155,-500.0,0.00019178,2]
[346384814,1734931843164,-500.0,0.00019178,2]
[346384815,1734931843173,-1772.94,0.00019178,2]
[346384816,1734931843182,-1442.63,0.00019178,2]
[346384817,1734931843192,-683.32,0.00019178,2]
[346384818,1734931843201,-2520.6,0.00019178,2]
[346384819,1734931843210,-1497.92,0.00019178,2]
[346384820,1734931843219,-982.46,0.00019178,2]
[346384821,1734931843228,-502.84958028,0.00019178,2]
[346384822,1734931843238,-999.97,0.00019178,2]
[346384823,1734931843247,-1908.85,0.00019178,2]
[346384824,1734931843258,-500.0,0.00019178,2]
[346384825,1734931843267,-500.0,0.00019178,2]
[346384826,1734931843277,-2943.86,0.00019178,2]
[346384827,1734931843286,-500.0,0.00019178,2]
[346384828,1734931843295,-500.0,0.00019178,2]
[346384829,1734931843304,-500.0,0.00019178,2]
[346384830,1734931843313,-500.0,0.00019178,2]
[346384831,1734931843321,-500.0,0.00019178,2]
[346384832,1734931843330,-1979.77,0.00019178,2]
[346384833,1734931843339,-500.0,0.00019178,2]
[346384834,1734931843348,-503.72844406,0.00019178,2]
[346384835,1734931843357,-500.0,0.00019178,2]
[346384836,1734931843366,-502.17855365,0.00019178,2]
[346384837,1734931843375,-12786.51,0.00019178,2]
[346384838,1734931843392,-1190.83,0.00019178,2]
[346384839,1734931843403,-505.11798085,0.00019178,2]
[346384840,1734931843413,-2755.35,0.00019178,2]
[346384841,1734931843422,-500.0,0.00019178,2]
[346384842,1734931843431,-2155.86,0.00019178,2]
[346384843,1734931843441,-500.0,0.00019178,2]
[346384844,1734931843451,-500.0,0.00019178,2]
[346384845,1734931843460,-500.0,0.00019178,2]
[346384846,1734931843470,-1171.17,0.00019178,2]
[346384847,1734931843479,-1248.58,0.00019178,2]
[346384849,1734931843489,-1119.96,0.00019178,2]
[346384851,1734931843498,-505.21664846,0.00019178,2]
[346384853,1734931843508,-5172.01,0.00019178,2]
[346384855,1734931843518,-502.0512992,0.00019178,2]
[346384857,1734931843527,-500.0,0.00019178,2]
[346384859,1734931843537,-17011.16,0.00019178,2]
[346384861,1734931843546,-7151.59,0.00019178,2]
[346384862,1734931843556,-7151.59,0.00019178,2]
[346384863,1734931843565,-7151.59,0.00019178,2]
[346384864,1734931843770,-7151.59,0.00019178,2]
[346384865,1734931843781,-7151.59,0.00019178,2]
[346384866,1734931843791,-7151.59,0.00019178,2]
[346384867,1734931843800,-7151.59,0.00019178,2]
[346384868,1734931843811,-7151.59,0.00019178,2]
[346384869,1734931843820,-7151.59,0.00019178,2]
[346384870,1734931843830,-7151.59,0.00019178,2]
[346384871,1734931843839,-7151.59,0.00019178,2]
[346384872,1734931843849,-7151.59,0.00019178,2]
[346384873,1734931843859,-1096.06,0.00019178,2]
[346384874,1734931843868,-7151.59,0.00019178,2]
[346384875,1734931843878,-1877.8,0.00019178,2]
[346384876,1734931843887,-7151.59,0.00019178,2]
[346384877,1734931843896,-7151.59,0.00019178,2]
[346384878,1734931843906,-7151.59,0.00019178,2]
[346384879,1734931843915,-7151.59,0.00019178,2]
[346384880,1734931843925,-7151.59,0.00019178,2]
[346384881,1734931843934,-7151.59,0.00019178,2]
[346384882,1734931843943,-7151.59,0.00019178,2]
[346384883,1734931843953,-7151.59,0.00019178,2]
[346384884,1734931843962,-7151.59,0.00019178,2]
[346384885,1734931843972,-7151.59,0.00019178,2]
[346384886,1734931843982,-38342.95,0.00019178,2]
[346384887,1734931843991,-2012.46,0.00019178,2]
[346384888,1734931844002,-7151.82777717,0.00019178,2]
[346384889,1734931844012,-505.17013396,0.00019178,2]
[346384890,1734931844022,-500.0,0.00019178,2]
[346384891,1734931844032,-1766.94,0.00019178,2]
[346384892,1734931844041,-500.0,0.00019178,2]
[346384893,1734931844050,-501.93969763,0.00019178,2]
[346384894,1734931844060,-517.3955032,0.00019178,2]
[346384895,1734931844070,-3051.76,0.00019178,2]
[346384896,1734931844080,-1221.94,0.00019178,2]
[346384897,1734931844089,-500.0,0.00019178,2]
[346384898,1734931844099,-510.36824638,0.00019178,2]
[346384899,1734931844108,-500.0,0.00019178,2]
[346384900,1734931844119,-686.62,0.00019178,2]
[346384901,1734931844129,-500.0,0.00019178,2]
[346384902,1734931844139,-798.65,0.00019178,2]
[346384903,1734931844149,-3464.09,0.00019178,2]
[346384904,1734931844158,-500.0,0.00019178,2]
[346384905,1734931844168,-500.0,0.00019178,2]
[346384906,1734931844177,-1534.55,0.00019178,2]
[346384907,1734931844187,-500.0,0.00019178,2]
[346384908,1734931844197,-3099.81,0.00019178,2]
[346384909,1734931844207,-500.0,0.00019178,2]
[346384910,1734931844217,-502.86780974,0.00019178,2]
[346384911,1734931844226,-500.0,0.00019178,2]
[346384912,1734931844236,-969.15,0.00019178,2]
[346384913,1734931844245,-531.76,0.00019178,2]
[346384914,1734931844254,-500.0,0.00019178,2]
[346384915,1734931844264,-1332.97,0.00019178,2]
[346384916,1734931844273,-507.71494474,0.00019178,2]
[346384917,1734931844283,-500.0,0.00019178,2]
[346384918,1734931844293,-1657.62,0.00019178,2]
[346384919,1734931844302,-2171.88,0.00019178,2]
[346384920,1734931844311,-3536.71,0.00019178,2]
[346384921,1734931844321,-2241.66,0.00019178,2]
[346384922,1734931844330,-3557.06,0.00019178,2]
[346384923,1734931844340,-780.7,0.00019178,2]
[346384924,1734931844351,-502.6933383,0.00019178,2]
[346384925,1734931844361,-501.36342469,0.00019178,2]
[346384926,1734931844371,-505.03259398,0.00019178,2]
[346384927,1734931844380,-1978.94,0.00019178,2]
[346384928,1734931844390,-1952.38,0.00019178,2]
[346384929,1734931844399,-500.0,0.00019178,2]
[346384930,1734931844409,-500.0,0.00019178,2]
[346384931,1734931844419,-721.01,0.00019178,2]
[346384932,1734931844429,-6166.88,0.00019178,2]
[346384933,1734931844439,-500.0,0.00019178,2]
[346384934,1734931844448,-767.61,0.00019178,2]
[346384935,1734931844457,-507.68039408,0.00019178,2]
[346384936,1734931844467,-1060.92,0.00019178,2]
[346384937,1734931844476,-9256.22,0.00019178,2]
[346384938,1734931844486,-504.29051318,0.00019178,2]
[346384939,1734931844495,-6408.71,0.00019178,2]
[346384940,1734931844504,-10933.82,0.00019178,2]
[346384941,1734931844514,-2355.46,0.00019178,2]
[346384942,1734931844523,-500.0,0.00019178,2]
[346384943,1734931844532,-740.69,0.00019178,2]
[346384944,1734931844542,-501.62737106,0.00019178,2]
[346384945,1734931844552,-1362.02,0.00019178,2]
[346384946,1734931844565,-5076.61,0.00019178,2]
[346384947,1734931844577,-500.0,0.00019178,2]
[346384948,1734931844587,-1738.84,0.00019178,2]
[346384949,1734931844596,-502.92988768,0.00019178,2]
[346384950,1734931844605,-500.0,0.00019178,2]
[346384951,1734931844614,-1312.18,0.00019178,2]
[346384952,1734931844624,-500.0,0.00019178,2]
[346384953,1734931844633,-2594.01,0.00019178,2]
[346384954,1734931844642,-500.0,0.00019178,2]
[346384955,1734931844655,-532.57,0.00019178,2]
[346384956,1734931844664,-1000.0,0.00019178,4]
[346384957,1734931844673,-1000.0,0.00019178,4]
[346384958,1734931844683,-1000.0,0.00019178,4]
[346384959,1734931844693,-1000.0,0.00019178,4]
[346384960,1734931844702,-1000.0,0.00019178,4]
[346384961,1734931844711,-653.04,0.00019178,2]
[346384962,1734931844720,-1000.0,0.00019178,4]
[346384963,1734931844730,-320.21811626,0.00019178,2]
[346384964,1734931844739,-402.67103026,0.00019178,4]
[346384965,1734931844748,-3022.93,0.00019178,2]
[346384966,1734931844759,-504.73943296,0.00019178,2]
[346384967,1734931844769,-611.45,0.00019178,2]
[346384968,1734931844778,-500.0,0.00019178,2]
[346384969,1734931844787,-500.0,0.00019178,2]
[346384970,1734931844797,-588.42,0.00019178,2]
[346384971,1734931844806,-2747.21,0.00019178,2]
[346384972,1734931844816,-2539.83,0.00019178,2]
[346384973,1734931844825,-500.0,0.00019178,2]
[346384974,1734931844834,-3698.03,0.00019178,2]
[346384975,1734931844843,-4680.22,0.00019178,2]
[346384976,1734931844852,-660.63,0.00019178,2]
[346384977,1734931844862,-21431.66,0.00019178,2]
[346384978,1734931844871,-649.3283227,0.00019178,2]
[346384979,1734931844880,-500.0,0.00019178,2]
[346384980,1734931844889,-500.0,0.00019178,2]
[346384981,1734931844898,-500.0,0.00019178,2]
[346384982,1734931844908,-1051.52,0.00019178,2]
[346384983,1734931844917,-667.72,0.00019178,2]
[346384984,1734931844926,-3391.2,0.00019178,2]
[346384985,1734931844936,-1291.97,0.00019178,2]
[346384986,1734931844945,-502.75901204,0.00019178,2]
[346384987,1734931844954,-500.0,0.00019178,2]
[346384988,1734931844963,-4011.11,0.00019178,2]
[346384989,1734931844972,-500.0,0.00019178,2]
[346384990,1734931844982,-753.93,0.00019178,2]
[346384991,1734931844991,-376.30676681,0.00019178,2]
[346384992,1734931845001,-1169.3,0.00019178,2]
[346384993,1734931845012,-500.0,0.00019178,2]
[346384994,1734931845021,-2450.15,0.00019178,2]
[346384995,1734931845031,-500.0,0.00019178,2]
[346384996,1734931845040,-500.0,0.00019178,2]
[346384997,1734931845050,-2402.98,0.00019178,2]
[346384998,1734931845059,-9288.76,0.00019178,2]
[346384999,1734931845069,-507.05100525,0.00019178,2]
[346385000,1734931845078,-528.45990814,0.00019178,2]
[346385001,1734931845088,-2369.59,0.00019178,2]
[346385002,1734931845098,-502.26515989,0.00019178,2]
[346385003,1734931845107,-500.0,0.00019178,2]
[346385004,1734931845118,-1928.76,0.00019178,2]
[346385005,1734931845127,-1354.85,0.00019178,2]
[346385006,1734931845136,-7550.08,0.00019178,2]
[346385007,1734931845145,-500.0,0.00019178,2]
[346385008,1734931845155,-500.0,0.00019178,2]